bitfinex-derivatives/quotes_ETHF0:USTF0_20251118
["timestamp","ask_amount","ask_price","bid_price","bid_amount"]
[1763476750591,10.523,3090.5,3088.0,0.00486113]
[1763476750901,0.33359428,3089.8,3088.0,0.00874239]
[1763476752497,0.33359428,3089.8,3088.1,3.2368]
[1763476752702,0.33359428,3089.8,3088.0,0.00874239]
[1763476753100,0.33359428,3089.8,3088.1,3.2368]
[1763476753404,0.3306,3091.5,3088.2,8.85]
[1763476753605,0.3306,3091.5,3088.2,12.0868]
[1763476753805,0.3306,3091.5,3088.0,0.00874239]
[1763476754007,0.3306,3091.5,3088.1,3.236]
[1763476754305,0.33334095,3091.5,3088.1,3.236]
[1763476754506,0.33334095,3091.5,3088.0,0.00874239]
[1763476756198,0.33334095,3091.5,3088.1,3.236]
[1763476756598,0.33334095,3091.5,3088.0,0.00874239]
[1763476756599,0.33334095,3091.5,3088.2,11.734]
[1763476756794,0.33334095,3091.5,3088.5,40.8]
[1763476756994,0.33334095,3091.5,3089.7,0.00486113]
[1763476757395,0.33334095,3091.5,3089.7,3.24006113]
[1763476758201,0.33334095,3091.5,3089.7,0.00486113]
[1763476758505,0.33334095,3091.5,3089.7,3.24006113]
[1763476758700,0.33334095,3091.5,3089.7,0.00486113]
[1763476758903,10.508,3095.5,3089.8,7.51161899]
[1763476759401,10.508,3095.5,3089.9,3.2344]
[1763476759803,10.508,3095.5,3091.9,0.00485224]
[1763476760108,10.508,3095.5,3091.9,0.00848801]
[1763476760796,10.508,3095.5,3092.0,40.8]
[1763476761003,10.508,3095.5,3091.9,0.00848801]
[1763476761199,0.2952,3092.6,3088.8,10.503]
[1763476761410,0.2952,3092.6,3090.0,40.8]
[1763476762003,0.2952,3092.6,3088.2,10.501]
[1763476762310,0.00479527,3090.7,3088.2,10.50365774]
[1763476762507,0.00479527,3090.7,3088.3,40.8]
[1763476762811,0.00479527,3090.7,3088.3,48.75230031]
[1763476763002,0.29866383,3092.6,3088.4,3.236]
[1763476763204,0.29866383,3092.6,3088.4,3.63709249]
[1763476763497,0.29866383,3092.6,3088.5,7.43280124]
[1763476763710,0.29866383,3092.6,3088.6,19.345]
[1763476763906,0.29866383,3092.6,3088.6,26.21729249]
[1763476764104,0.29866383,3092.6,3090.3,0.00485224]
[1763476764308,0.29866383,3092.6,3090.4,8.85]
[1763476764506,0.113,3094.9,3090.5,3.25]
[1763476764703,0.113,3094.9,3090.6,19.254]
[1763476764905,0.113,3094.9,3090.6,3.49441983]
[1763476765110,0.2952,3093.0,3090.4,0.00296031]
[1763476766110,0.2952,3093.0,3091.4,0.00485224]
[1763476766111,0.2952,3091.5,3091.4,0.00485224]
[1763476766316,0.2952,3091.5,3090.4,0.00296031]
[1763476767019,0.2952,3091.5,3090.5,3.2352]
[1763476767309,0.2952,3091.5,3090.7,0.00485224]
[1763476767712,0.2952,3091.5,3090.7,3.23925224]
[1763476768114,0.2952,3091.5,3090.7,0.00485224]
[1763476768320,0.00485224,3092.0,3090.7,3.23925224]
[1763476768620,0.00485224,3092.0,3090.7,0.00485224]
[1763476769016,0.00485224,3092.0,3090.4,0.00296031]
[1763476769017,0.3094,3091.2,3090.4,0.00296031]
[1763476770013,0.3094,3091.2,3090.5,0.00485224]
[1763476770414,6.3094,3091.2,3089.0,40.8]
[1763476770618,0.3094,3091.2,3087.9,8.849]
[1763476771414,0.3094,3089.8,3089.2,0.00485224]
[1763476771613,3.5462,3089.8,3085.8,40.8]
[1763476771813,0.3094,3089.8,3085.8,40.8]
[1763476772422,3.5478,3089.8,3084.2,10.494]
[1763476772622,0.00485224,3088.1,3084.3,8.846]
[1763476772812,0.0036619,3088.1,3084.3,8.846]
[1763476773013,0.0036619,3088.1,3084.3,8.839]
[1763476773220,3.24,3088.0,3084.3,8.839]
[1763476773521,0.00486035,3086.5,3085.8,0.00326187]
[1763476773714,0.00486035,3086.5,3084.3,8.839]
[1763476774425,0.00486035,3086.5,3084.3,8.832]
[1763476774619,0.00486035,3086.5,3084.2,0.00330463]
[1763476774620,0.3094,3085.5,3084.2,0.00330463]
[1763476774921,0.3094,3085.5,3082.6,0.78827342]
[1763476775123,0.00486035,3084.4,3082.5,10.497]
[1763476775319,0.3094,3085.5,3082.7,1.10525046]
[1763476775627,0.3094,3085.5,3082.8,40.8]
[1763476775827,0.31355984,3085.5,3082.8,40.80379018]
[1763476776218,0.3094,3084.0,3082.8,0.00379018]
[1763476776517,0.3094,3084.0,3081.5,0.05631328]
[1763476776720,3.24320001,3083.9,3080.2,1.10525046]
[1763476776927,0.3094,3084.0,3080.3,0.79480377]
[1763476777120,0.3094,3084.0,3080.2,0.79480377]
[1763476777321,3.244,3083.9,3079.2,1.10525046]
[1763476777524,0.00486035,3082.4,3079.2,0.00296227]
[1763476777822,0.00845067,3082.4,3079.7,0.05648961]
[1763476778028,0.00845067,3082.4,3080.1,1.10525046]
[1763476778227,0.3094,3082.5,3080.5,1.10525046]
[1763476778419,0.3094,3082.5,3080.6,1.10525046]
[1763476778618,0.3094,3082.5,3080.9,1.10525046]
[1763476779023,0.3094,3082.5,3081.0,3.2448]
[1763476779226,0.31222036,3082.5,3081.4,0.00486887]
[1763476779529,0.00486887,3082.1,3081.4,0.00796144]
[1763476780624,0.31222036,3082.5,3081.4,0.00796144]
[1763476780825,0.31222036,3082.5,3081.5,3.244]
[1763476781131,0.3094,3084.0,3081.6,3.48436272]
[1763476781334,0.3094,3084.0,3081.7,4.34845046]
[1763476781543,0.3094,3084.0,3081.7,4.03096602]
[1763476781733,0.00486887,3083.2,3081.7,8.842]
[1763476781934,0.3094,3084.0,3081.7,12.0852]
[1763476782134,0.3094,3084.0,3081.7,8.842]
[1763476782739,0.3094,3084.0,3081.4,0.00796144]
[1763476783037,0.00486887,3083.0,3081.5,3.2432]
[1763476783246,0.00486887,3083.0,3081.4,0.00796144]
[1763476783441,0.3094,3082.5,3081.4,0.00796144]
[1763476784147,0.3094,3082.5,3081.8,0.52625]
[1763476784448,0.3094,3082.5,3081.4,0.00796144]
[1763476784635,0.52621,3082.1,3081.6,0.52628]
[1763476784840,0.3094,3082.5,3081.6,0.52628]
[1763476785142,0.3094,3082.5,3081.4,0.00796144]
[1763476785337,0.5262,3082.2,3081.7,0.52626]
[1763476785533,0.52624,3082.0,3081.4,0.53427144]
[1763476785742,0.52629,3081.6,3081.4,0.00796144]
[1763476785938,0.3094,3081.4,3081.2,0.52635]
[1763476786236,0.3094,3081.4,3079.7,16.02148961]
[1763476786237,0.3094,3082.5,3079.8,44.34268738]
[1763476786737,0.52624,3081.9,3079.8,40.8]
[1763476786942,0.52624,3081.9,3081.5,0.5263]
[1763476786943,0.52627,3081.8,3081.5,0.5263]
[1763476787143,0.3094,3081.4,3080.5,0.00486887]
[1763476787342,0.3094,3081.4,3081.0,0.52638]
[1763476787541,0.3094,3081.4,3081.2,0.52635]
[1763476787738,0.3094,3081.4,3081.0,0.52639]
[1763476787939,0.28324,3081.4,3081.2,0.52636]
[1763476788146,0.00242812,3081.9,3081.7,0.52626]
[1763476788345,0.00486887,3082.0,3081.8,0.52625]
[1763476788644,0.00486887,3082.0,3080.5,0.00486887]
[1763476788943,0.3094,3082.5,3080.5,0.00486887]
[1763476789142,0.83554,3082.5,3082.2,0.52618]
[1763476789443,0.52606,3083.0,3082.2,0.00409659]
[1763476789644,0.52603,3083.2,3082.9,0.52606]
[1763476789841,0.52605,3083.1,3082.2,0.00409659]
[1763476790144,0.3094,3082.8,3082.7,0.00486887]
[1763476790438,0.31249692,3082.8,3082.7,0.00486887]
[1763476790642,0.52617,3082.3,3082.2,0.00409659]
[1763476791034,0.52617,3082.4,3082.2,0.00409659]
[1763476791431,0.5263,3081.6,3081.3,0.52633]
[1763476791634,0.5263,3081.6,3081.4,0.52632]
[1763476791835,0.52633,3081.4,3081.1,0.00486887]
[1763476792041,0.52635,3081.3,3081.1,0.00486887]
[1763476792244,0.00486887,3081.8,3081.1,0.53123887]
[1763476792445,0.3094,3081.0,3080.0,1.0]
[1763476792631,0.52643,3080.8,3080.0,1.0]
[1763476792835,0.3094,3081.0,3080.8,0.52642]
[1763476793035,0.00486887,3081.8,3080.9,3.2456]
[1763476793339,0.31249692,3082.8,3080.1,3.2456]
[1763476793533,0.52617,3082.4,3080.0,1.00409752]
[1763476793741,0.31249692,3082.8,3081.7,0.52627]
[1763476793944,0.31249692,3082.8,3080.0,4.25409752]
[1763476794140,0.31249692,3082.8,3080.1,6.73570642]
[1763476794439,0.00486887,3081.8,3081.7,0.52627]
[1763476794739,0.52623,3082.0,3081.8,0.52625]
[1763476794950,0.52621,3082.1,3081.1,0.00486887]
[1763476795239,0.52625,3081.9,3081.5,0.52631]
[1763476795434,0.52628,3081.7,3081.5,0.5263]
[1763476795634,0.53112887,3081.9,3081.1,0.00486887]
[1763476795831,0.52626,3081.8,3081.1,0.00486887]
[1763476796236,0.00486887,3081.9,3081.8,0.52626]
[1763476796644,0.00486887,3081.9,3081.7,0.52627]
[1763476797143,0.31249692,3082.8,3082.4,0.52615]
[1763476797338,0.83858692,3082.8,3082.4,0.00274216]
[1763476797648,0.31249692,3082.8,3082.6,0.52611]
[1763476797943,0.52612,3082.6,3082.4,0.00274216]
[1763476798135,0.52624,3082.0,3081.1,0.00486887]
[1763476798335,0.31736579,3082.8,3081.2,0.52635]
[1763476798548,0.31736579,3082.8,3081.1,0.00486887]
[1763476798837,0.52626,3081.8,3081.2,0.52636]
[1763476799041,0.52614,3082.5,3081.2,0.00246705]
[1763476799240,0.31736579,3082.8,3081.2,0.00246705]
[1763476799442,0.52616,3082.4,3082.3,0.52616]
[1763476799630,0.31736579,3082.8,3082.7,0.5261]
[1763476799831,0.31736579,3082.8,3081.2,0.83936501]
[1763476800043,0.31736579,3082.8,3081.3,0.79870071]
[1763476800343,0.52631,3081.5,3081.4,0.80301286]
[1763476800545,0.31736579,3082.8,3081.4,0.80296186]
[1763476800738,0.31736579,3082.8,3081.5,1.64644353]
[1763476800939,0.31736579,3082.8,3081.6,0.80296186]
[1763476801139,0.52633,3081.4,3081.2,0.84594872]
[1763476801341,0.3023,3081.6,3081.2,0.00246705]
[1763476801540,0.31736579,3082.8,3081.3,0.80612671]
[1763476801746,0.31736579,3082.8,3082.7,0.5261]
[1763476801941,0.52611,3082.7,3082.5,0.52613]
[1763476802142,0.31736579,3082.8,3082.7,0.5261]
[1763476802143,0.00796579,3082.8,3082.7,0.5261]
[1763476802350,0.3094,3084.9,3082.7,0.80506751]
[1763476802546,0.3094,3084.9,3083.8,0.52592]
[1763476802750,0.3023,3084.0,3083.9,4.04746751]
[1763476802956,0.3023,3084.0,3083.9,0.80506751]
[1763476803349,0.3023,3084.0,3083.2,1.66354564]
[1763476803350,0.526,3083.3,3083.1,3.673e-05]
[1763476803553,0.52614,3082.6,3082.5,0.52614]
[1763476803846,0.52615,3082.5,3082.3,0.52616]
[1763476804051,0.3023,3082.8,3082.2,0.52618]
[1763476804247,0.52612,3082.6,3081.9,1.6564762]
[1763476804450,0.00486887,3082.6,3082.2,1.13300343]
[1763476804647,0.00486887,3082.6,3082.2,0.00275723]
[1763476804648,0.52616,3082.4,3082.2,0.00275723]
[1763476804951,9.244,3082.5,3080.6,1.66354564]
[1763476805249,9.244,3082.5,3079.6,2.7899636]
[1763476805250,0.00486887,3082.6,3080.7,1.66354564]
[1763476805449,0.00486887,3082.6,3081.4,1.66354564]
[1763476805652,0.00486887,3082.6,3081.9,1.66354564]
[1763476805951,0.00486887,3082.6,3082.4,0.52615]
[1763476806246,1.15774115,3084.6,3082.1,2.18974564]
[1763476806444,0.3023,3082.8,3081.9,0.00800967]
[1763476806646,0.52621,3082.2,3081.9,0.00800967]
[1763476806840,0.3023,3082.8,3081.9,0.00800967]
[1763476807147,0.00486887,3082.7,3080.7,1.66354564]
[1763476807345,0.52648,3080.6,3080.0,2.66354564]
[1763476807545,0.52655,3080.1,3080.0,1.0]
[1763476807743,0.52642,3080.9,3079.3,1.66354564]
[1763476807945,1.15774115,3082.0,3080.3,0.5265]
[1763476808162,0.00486887,3081.5,3080.8,0.00486887]
[1763476808346,0.52637,3081.2,3080.8,0.00486887]
[1763476808652,0.00486887,3081.5,3080.8,0.00486887]
[1763476808843,0.00486887,3081.5,3081.4,0.52633]
[1763476809048,0.00340272,3082.0,3081.8,0.52625]
[1763476809252,1.15774115,3083.8,3081.4,1.66354564]
[1763476809447,1.15774115,3084.2,3081.8,1.66354564]
[1763476809657,10.521,3085.1,3083.4,0.52598]
[1763476809853,1.67891496,3085.5,3083.4,0.52598]
[1763476809854,1.15774115,3085.5,3083.4,3.2416]
[1763476810056,0.3023,3086.2,3084.1,1.66841451]
[1763476810256,0.00486887,3085.5,3084.5,1.66354564]
[1763476810445,0.00227675,3086.2,3084.5,1.66354564]
[1763476810756,0.00227675,3086.2,3084.3,1.66354564]
[1763476810955,0.00227675,3086.2,3084.1,0.00759888]
[1763476811152,0.52555,3086.0,3084.1,1.67114452]
[1763476811354,0.00227675,3086.2,3085.5,0.52561]
[1763476811656,1.15774115,3087.9,3086.8,0.52539]
[1763476811958,0.00486089,3087.7,3086.3,2.18902564]
[1763476812255,1.16260204,3087.7,3084.6,1.66354564]
[1763476812460,0.52549,3086.4,3084.9,0.52573]
[1763476812654,0.00409851,3086.4,3084.9,0.00421254]
[1763476813164,0.00486089,3086.0,3085.3,0.00486089]
[1763476813358,0.52558,3085.8,3085.3,0.00486089]
[1763476813553,0.00486089,3086.0,3085.3,0.00486089]
[1763476813554,6.00486089,3086.0,3085.3,0.00486089]
[1763476813746,0.52571,3085.1,3084.9,0.00421254]
[1763476813948,0.062,3085.6,3082.9,1.66354564]
[1763476814253,0.062,3085.6,3082.2,2.18972564]
[1763476814254,1.15774115,3085.4,3082.2,2.18972564]
[1763476814451,1.15774115,3085.4,3081.5,3.90594904]
[1763476814452,1.15774115,3085.2,3082.0,1.66354564]
[1763476814654,0.00486089,3083.9,3081.6,1.66354564]
[1763476814853,0.52596,3083.6,3082.4,0.00486089]
[1763476815155,0.00813327,3083.9,3082.4,0.00486089]
[1763476815757,0.52594,3083.7,3082.5,0.52612]
[1763476815955,0.52594,3083.7,3082.4,0.00486089]
[1763476815956,0.52573,3084.9,3082.4,1.66840653]
[1763476816151,1.21974115,3085.6,3082.9,1.66354564]
[1763476816152,0.062,3085.6,3082.9,1.66354564]
[1763476816350,0.062,3085.6,3083.0,1.66354564]
[1763476816551,0.52572,3085.0,3083.3,1.66354564]
[1763476816757,0.062,3085.6,3084.4,0.5258]
[1763476816957,0.00486089,3085.3,3084.7,0.00486089]
[1763476817551,0.52569,3085.2,3084.7,0.00486089]
[1763476817753,0.00486089,3085.3,3084.7,0.00486089]
[1763476818160,0.5257,3085.1,3084.7,0.00486089]
[1763476818464,0.5257,3085.1,3084.4,0.00280758]
[1763476818465,6.0,3085.2,3082.6,1.66354564]
[1763476818665,0.52612,3082.7,3081.5,1.66354564]
[1763476818858,1.15774115,3084.9,3081.5,1.66354564]
[1763476819059,2.793,3085.3,3082.2,1.66354564]
[1763476819266,2.793,3085.3,3082.4,1.66354564]
[1763476819564,0.52597,3083.5,3083.4,0.00486089]
[1763476819754,0.00486089,3084.1,3082.7,0.5261]
[1763476819960,0.00486089,3084.1,3082.4,0.00387498]
[1763476820460,0.00227311,3085.3,3083.0,1.66354564]
[1763476820763,0.00227311,3085.3,3085.1,0.52568]
[1763476820961,0.2974,3087.0,3085.2,9.2408]
[1763476820962,0.5255,3086.3,3085.2,9.2408]
[1763476821159,1.15774115,3088.1,3086.2,0.5255]
[1763476821356,0.00486089,3087.4,3086.9,0.52538]
[1763476821550,0.00486089,3087.4,3087.1,0.52535]
[1763476821753,1.67891496,3089.6,3087.1,0.52535]
[1763476821754,11.67574115,3090.3,3088.2,0.52515]
[1763476821966,0.32788068,3089.8,3088.2,0.00260209]
[1763476822159,0.00278068,3089.8,3088.2,0.00260209]
[1763476822359,0.00278068,3089.8,3088.4,0.52512]
[1763476822563,0.00278068,3089.8,3088.2,0.00260209]
[1763476822861,0.00278068,3089.8,3088.7,0.00486089]
[1763476823159,0.52505,3089.0,3088.7,0.00486089]
[1763476823363,0.52504,3089.0,3088.7,0.00486089]
[1763476823661,0.5251,3088.6,3088.2,0.00260209]
[1763476823862,0.52521,3088.0,3085.6,0.3254]
[1763476824158,0.00278068,3089.8,3085.8,1.66354564]
[1763476824470,0.52518,3088.2,3086.2,1.66354564]
[1763476824761,0.00278068,3089.8,3086.2,1.66354564]
[1763476824762,0.00486089,3087.5,3086.9,0.00486089]
[1763476824960,0.52531,3087.4,3086.7,0.52542]
[1763476825166,0.00723298,3087.5,3086.2,0.00241202]
[1763476825662,0.52535,3087.2,3086.2,0.00241202]
[1763476825865,0.00723298,3087.5,3086.4,0.00486089]
[1763476826660,0.52544,3086.7,3086.4,0.00486089]
[1763476826861,0.52537,3087.1,3086.4,0.00486089]
[1763476827066,0.00723298,3087.5,3086.4,0.00486089]
[1763476827266,0.52538,3087.0,3086.4,0.00486089]
[1763476827459,0.52539,3086.9,3086.4,0.00486089]
[1763476827768,0.00723298,3087.5,3086.4,0.00486089]
[1763476828355,0.52545,3086.6,3086.4,0.00486089]
[1763476828560,0.52549,3086.3,3086.2,0.00241202]
[1763476828763,0.52557,3085.9,3084.2,0.3254]
[1763476829061,0.2867,3087.0,3084.2,0.3254]
[1763476829567,3.2408,3086.9,3082.7,1.66354564]
[1763476829766,0.1625,3085.6,3082.8,0.00415707]
[1763476830667,0.00486089,3085.9,3083.1,1.66354564]
[1763476830860,0.00486089,3085.9,3082.9,1.66354564]
[1763476831056,0.3021,3085.5,3083.7,0.52592]
[1763476831259,0.52586,3084.2,3083.5,0.52596]
[1763476831473,0.52586,3084.2,3082.8,0.00415707]
[1763476831474,0.00742813,3084.2,3082.8,0.00415707]
[1763476831761,0.00742813,3084.2,3083.4,0.52598]
[1763476831965,0.52588,3084.1,3083.5,0.52596]
[1763476832169,0.00742813,3084.2,3082.8,0.00415707]
[1763476832357,0.52599,3083.4,3082.8,0.00415707]
[1763476832561,0.00742813,3084.2,3083.5,0.52596]
[1763476832761,0.00742813,3084.2,3082.8,0.00415707]
[1763476832961,0.52605,3083.0,3082.8,0.00415707]
[1763476833162,0.00742813,3084.2,3082.8,0.00415707]
[1763476833163,0.52599,3083.4,3082.8,0.00415707]
[1763476833362,0.00742813,3084.2,3082.8,0.00415707]
[1763476833363,0.52605,3083.0,3082.8,0.00415707]
[1763476833983,0.52619,3082.2,3081.0,0.3254]
[1763476834277,0.00486089,3081.9,3081.7,0.52627]
[1763476834464,0.00486089,3081.9,3081.0,0.3254]
[1763476834665,0.00486089,3081.9,3080.1,1.66354564]
[1763476834666,0.52629,3081.6,3080.1,1.66354564]
[1763476834870,0.00486089,3081.9,3079.8,1.12174331]
[1763476835073,0.00885609,3081.9,3079.8,1.12437538]
[1763476835374,0.00885609,3081.9,3081.4,0.52631]
[1763476835560,0.00885609,3081.9,3081.7,0.52626]
[1763476835763,10.512,3083.8,3082.0,0.52621]
[1763476836569,10.512,3083.8,3080.1,1.12174331]
[1763476836878,0.00486902,3082.3,3081.6,0.00486902]
[1763476837076,0.00486902,3082.3,3082.1,0.52619]
[1763476837274,0.00486902,3082.3,3081.6,0.00486902]
[1763476837275,0.00486902,3082.3,3082.2,0.52619]
[1763476837473,0.5261,3082.8,3082.0,0.52622]
[1763476837673,0.00388692,3083.8,3081.7,0.52626]
[1763476837875,0.00388692,3083.8,3081.6,0.00486902]
[1763476837876,0.00388692,3083.8,3081.8,0.52625]
[1763476838177,3.24708693,3083.8,3079.8,1.12174331]
[1763476838383,3.24708693,3083.8,3079.8,0.52658]
[1763476838384,0.3021,3082.8,3079.8,0.52658]
[1763476838681,0.52649,3080.5,3079.9,0.52657]
[1763476838980,0.52664,3079.6,3079.0,0.52672]
[1763476839190,0.52664,3079.6,3078.6,0.3003]
[1763476839191,0.52661,3079.8,3078.6,0.3003]
[1763476839378,0.00270017,3080.5,3078.6,0.3003]
[1763476839379,0.00486902,3079.6,3079.0,0.00486902]
[1763476840179,0.00486902,3079.6,3079.4,0.52666]
[1763476840381,0.00486902,3079.6,3079.2,0.52669]
[1763476840581,0.00270017,3080.5,3079.0,6.00723256]
[1763476840774,0.52618,3082.3,3081.6,0.52628]
[1763476841081,0.52615,3082.5,3081.9,0.52623]
[1763476841282,0.52623,3082.0,3081.4,0.52631]
[1763476841487,0.52627,3081.8,3080.0,1.42204331]
[1763476841675,0.00405393,3081.8,3081.4,0.00486902]
[1763476841872,0.53031393,3081.8,3081.5,0.5263]
[1763476842084,0.00405393,3081.8,3081.6,0.52628]
[1763476842479,0.00405393,3081.8,3081.4,0.00486902]
[1763476842678,0.5263,3081.6,3081.4,0.00486902]
[1763476842880,0.00486902,3082.0,3081.9,0.52624]
[1763476843085,0.2925,3084.0,3081.4,6.30516902]
[1763476843281,0.90012054,3085.3,3083.0,0.52604]
[1763476843579,0.3021,3085.5,3081.4,0.3003]
[1763476843789,0.3021,3085.5,3083.4,0.52597]
[1763476843984,0.52585,3084.2,3084.1,0.00486902]
[1763476844191,0.00486902,3084.8,3084.1,0.00486902]
[1763476844395,0.52585,3084.2,3084.1,0.00486902]
[1763476844575,0.52597,3083.5,3083.4,0.00255316]
[1763476844781,0.52613,3082.6,3082.0,0.52622]
[1763476845090,0.30595537,3085.5,3080.4,1.12174331]
[1763476845091,11.68186,3085.2,3080.4,1.12174331]
[1763476845386,0.3021,3085.5,3080.5,40.8]
[1763476845581,0.3021,3085.5,3080.4,1.12174331]
[1763476845780,0.52602,3083.2,3083.1,0.00486902]
[1763476846081,0.00243706,3083.2,3081.8,0.52624]
[1763476846387,0.00243706,3083.2,3081.4,0.3031149]
[1763476846586,0.52846706,3083.2,3082.4,0.52614]
[1763476846790,0.52607,3082.9,3082.5,0.52612]
[1763476846993,0.00243706,3083.2,3081.5,40.8]
[1763476847179,0.52599,3083.4,3082.4,0.00486902]
[1763476847383,0.53078902,3083.8,3083.5,0.52596]
[1763476847593,0.5258,3084.6,3082.4,6.00486902]
[1763476847886,0.52613,3082.6,3082.4,0.00486902]
[1763476848079,10.52,3085.1,3081.4,0.3031149]
[1763476848285,10.52259648,3085.1,3081.4,0.3031149]
[1763476848581,0.00486902,3083.6,3082.9,0.00486902]
[1763476848787,0.00486902,3083.6,3083.3,0.52599]
[1763476848989,0.52598,3083.5,3082.9,0.00486902]
[1763476849178,0.52604,3083.1,3082.9,0.00486902]
[1763476849380,0.00486902,3083.6,3083.4,0.52598]
[1763476849590,0.00259648,3085.1,3083.5,6.0]
[1763476849884,0.00259648,3085.1,3082.9,3.24726902]
[1763476850088,0.52541,3086.8,3084.9,0.52571]
[1763476850283,0.3021,3087.0,3083.0,4.54722638]
[1763476850584,0.00486073,3085.3,3084.7,0.00486073]
[1763476850797,0.52574,3084.9,3084.7,0.00486073]
[1763476850990,0.52569,3085.2,3084.7,0.00486073]
[1763476851180,0.52569,3085.2,3084.7,0.00769272]
[1763476851181,0.52573,3084.9,3084.7,0.00769272]
[1763476851489,0.00229348,3085.2,3084.7,0.00769272]
[1763476851684,0.00229348,3085.2,3085.0,0.5257]
[1763476851890,0.52572,3085.0,3084.7,0.00769272]
[1763476852083,0.00229348,3085.2,3085.0,0.5257]
[1763476852388,2.539,3087.7,3084.7,9.24849272]
[1763476852598,0.52553,3086.1,3084.7,0.00769272]
[1763476852886,4.762,3089.2,3086.0,0.52553]
[1763476853084,4.762,3089.2,3085.6,0.3003]
[1763476853483,0.52538,3087.0,3086.5,0.52545]
[1763476853689,0.52534,3087.3,3087.1,0.00486073]
[1763476853885,0.00486073,3087.7,3087.5,0.52527]
[1763476854084,0.00486073,3087.7,3087.3,0.52531]
[1763476854284,0.52519,3088.1,3087.1,0.00833058]
[1763476854491,0.3021,3089.8,3087.1,0.00833058]
[1763476854684,0.3021,3089.8,3088.0,0.52519]
[1763476854986,0.5252,3088.0,3087.6,0.52525]
[1763476855188,0.00486073,3088.1,3087.1,0.00833058]
[1763476855695,0.52526,3087.7,3087.1,0.00833058]
[1763476855896,0.52531,3087.4,3087.1,0.00833058]
[1763476856186,0.0035393,3087.4,3087.1,0.00833058]
[1763476856893,0.52533,3087.3,3087.1,0.00833058]
[1763476857086,0.0035393,3087.4,3086.1,0.52551]
[1763476857285,0.52546,3086.5,3086.1,0.52551]
[1763476857493,0.0035393,3087.4,3085.6,0.3003]
[1763476857690,0.52552,3086.2,3085.6,0.3003]
[1763476857897,0.52556,3085.9,3085.6,0.3003]
[1763476858097,0.0035393,3087.4,3085.6,0.30427317]
[1763476858395,0.00486073,3086.1,3085.6,0.00397317]
[1763476858694,0.0035393,3087.4,3085.6,0.28507317]
[1763476858991,0.3021,3091.2,3086.2,1.12174331]
[1763476859191,0.3021,3091.2,3087.0,0.2811]
[1763476859385,0.52499,3089.3,3088.7,0.52507]
[1763476859581,0.00486073,3089.3,3088.7,0.00486073]
[1763476859789,0.52505,3088.9,3088.7,0.00486073]
[1763476859992,0.00319218,3088.9,3087.0,0.2811]
[1763476860689,0.00319218,3088.9,3085.3,1.12174331]
[1763476861003,0.52533,3087.3,3087.1,0.52535]
[1763476861197,0.00486073,3087.6,3086.9,0.00486073]
[1763476861409,0.00319218,3088.9,3087.0,3.5195]
[1763476861703,0.52496,3089.5,3087.3,1.12174331]
[1763476861993,10.51,3091.6,3087.4,4.774]
[1763476862197,10.51,3091.6,3089.7,0.5249]
[1763476862391,0.00486073,3090.8,3090.1,0.00486073]
[1763476862592,0.00814221,3090.8,3090.1,0.00783358]
[1763476862798,0.52481,3090.3,3090.1,0.00783358]
[1763476862987,0.00814221,3090.8,3088.4,0.2811]
[1763476863391,0.1628,3092.6,3090.8,0.52471]
[1763476863690,0.52478,3090.6,3088.6,0.82682795]
[1763476863893,0.1628,3092.6,3090.4,0.52478]
[1763476864091,0.52455,3091.9,3088.8,0.82682795]
[1763476864298,0.00293986,3091.9,3089.8,0.2811]
[1763476864505,0.52441,3092.7,3092.0,0.52451]
[1763476864712,0.52441,3092.7,3092.2,0.52448]
[1763476864998,0.52441,3092.7,3092.0,0.00485169]
[1763476864999,0.00485169,3092.7,3092.5,0.52442]
[1763476865497,0.2925,3095.4,3092.6,3.5139]
[1763476865700,0.52436,3093.0,3092.5,0.00263812]
[1763476865999,0.52436,3093.0,3092.6,3.2328]
[1763476866000,0.00229449,3093.0,3092.6,3.2328]
[1763476866192,0.2925,3095.4,3092.6,0.2811]
[1763476866388,0.00317002,3094.3,3092.5,0.00263812]
[1763476866694,0.52442,3092.7,3092.5,0.00263812]
[1763476866891,0.2925,3094.0,3090.5,0.52477]
[1763476867095,0.2925,3094.0,3089.8,10.7841]
[1763476867290,0.52484,3090.2,3088.6,40.8]
[1763476867500,0.00485169,3089.7,3089.1,0.00485169]
[1763476867690,0.00485169,3089.7,3089.2,0.52499]
[1763476867997,0.00748981,3089.7,3089.2,0.00389617]
[1763476868192,0.00748981,3089.7,3089.5,0.52493]
[1763476868388,0.2925,3091.5,3089.5,0.52493]
[1763476868793,0.2925,3093.0,3090.5,0.52476]
[1763476869094,0.52453,3092.0,3089.8,0.232]
[1763476869295,0.52437,3092.9,3091.9,0.52453]
[1763476869499,9.45881093,3095.3,3090.0,0.2811]
[1763476869697,0.00317002,3092.7,3092.1,0.00485169]
[1763476870102,0.52758002,3092.7,3092.1,0.00485169]
[1763476870298,0.52758002,3092.7,3092.5,0.52443]
[1763476870299,0.00317002,3092.7,3092.5,0.52443]
[1763476870602,0.00366954,3092.7,3092.5,0.00354219]
[1763476870798,0.52808954,3092.7,3092.5,0.00354219]
[1763476871202,0.52808954,3092.7,3089.3,0.82682795]
[1763476871203,0.00366954,3092.7,3089.3,0.82682795]
[1763476871401,0.00366954,3092.7,3089.5,10.498]
[1763476871606,0.52489,3089.9,3088.5,0.2811]
[1763476871805,0.2925,3092.8,3089.3,0.52497]
[1763476872104,11.6562,3092.0,3087.0,0.2811]
[1763476872297,0.52515,3088.3,3088.1,0.0022654]
[1763476872496,0.52515,3088.3,3085.5,1.12174331]
[1763476872497,0.52534,3087.2,3084.7,0.82682795]
[1763476872801,8.467,3090.5,3085.7,0.00485964]
[1763476872996,0.52521,3088.0,3086.7,0.52542]
[1763476873199,8.467,3090.5,3085.9,3.834]
[1763476873400,8.46979565,3090.5,3086.0,2.714]
[1763476873602,8.46979565,3090.5,3086.0,7.79321429]
[1763476873915,8.46979565,3090.5,3085.9,0.00297204]
[1763476874097,8.46979565,3090.5,3087.9,0.00485964]
[1763476874295,0.00279565,3090.5,3087.9,0.00485964]
[1763476875000,0.00279565,3090.5,3088.9,0.52503]
[1763476875205,0.00279565,3090.5,3088.9,0.00379815]
[1763476875403,0.00279565,3090.5,3089.1,0.525]